[Event "November 21 Early 2023"]
[Site "https://www.chess.com"]
[Date "2023.11.21"]
[Round "1"]
[White "campochess"]
[Black "aghasiyevkamal"]
[Result "1/2-1/2"]
[Board "224"]
[TimeControl "180+1"]
[WhiteElo "2186"]
[BlackElo "2547"]
[WhiteClock "0:00:42"]
[BlackClock "0:00:23"]

1. e4 {[%clk 0:02:59]}  e6 {[%clk 0:02:56]} 2. Qe2 {[%clk 0:02:58]}  c5 {[%clk 0:02:55]} 3. Nf3 {[%clk 0:02:55]}  Nc6 {[%clk 0:02:55]} 4. c3 {[%clk 0:02:56]}  d6 {[%clk 0:02:36]} 5. d4 {[%clk 0:02:53]}  cxd4 {[%clk 0:02:34]} 6. cxd4 {[%clk 0:02:50]}  Nf6 {[%clk 0:02:31]} 7. Nc3 {[%clk 0:02:49]}  e5 {[%clk 0:02:22]} 8. Be3 {[%clk 0:02:45]}  Be7 {[%clk 0:02:21]} 9. O-O-O {[%clk 0:02:45]}  Qa5 {[%clk 0:02:19]} 10. Kb1 {[%clk 0:02:44]}  Bg4 {[%clk 0:02:13]} 11. h3 {[%clk 0:02:39]}  Bh5 {[%clk 0:02:01]} 12. d5 {[%clk 0:02:38]}  Nb8 {[%clk 0:01:54]} 13. Qb5+ {[%clk 0:02:37]}  Qxb5 {[%clk 0:01:54]} 14. Bxb5+ {[%clk 0:02:35]}  Nbd7 {[%clk 0:01:53]} 15. g4 {[%clk 0:02:29]}  Bg6 {[%clk 0:01:52]} 16. Nd2 {[%clk 0:02:29]}  a6 {[%clk 0:01:50]} 17. Be2 {[%clk 0:02:25]}  Bd8 {[%clk 0:01:39]} 18. h4 {[%clk 0:02:23]}  h5 {[%clk 0:01:33]} 19. g5 {[%clk 0:02:20]}  Ng4 {[%clk 0:01:27]} 20. Bxg4 {[%clk 0:02:17]}  hxg4 {[%clk 0:01:27]} 21. Rdg1 {[%clk 0:02:13]}  Bb6 {[%clk 0:01:00]} 22. Nf1 {[%clk 0:02:11]}  Bxe3 {[%clk 0:00:59]} 23. Nxe3 {[%clk 0:02:10]}  Nc5 {[%clk 0:00:57]} 24. Rxg4 {[%clk 0:02:07]}  Kd7 {[%clk 0:00:55]} 25. f3 {[%clk 0:02:06]}  b5 {[%clk 0:00:54]} 26. Nf5 {[%clk 0:01:51]}  Rac8 {[%clk 0:00:52]} 27. Ng3 {[%clk 0:01:49]}  b4 {[%clk 0:00:48]} 28. Nd1 {[%clk 0:01:35]}  Bh5 {[%clk 0:00:46]} 29. Nxh5 {[%clk 0:01:34]}  Rxh5 {[%clk 0:00:46]} 30. Nf2 {[%clk 0:01:28]}  Rch8 {[%clk 0:00:43]} 31. Kc2 {[%clk 0:01:21]}  Kc7 {[%clk 0:00:40]} 32. Nd3 {[%clk 0:01:20]}  Nxd3 {[%clk 0:00:37]} 33. Kxd3 {[%clk 0:01:19]}  Kb6 {[%clk 0:00:38]} 34. f4 {[%clk 0:01:19]}  f6 {[%clk 0:00:36]} 35. fxe5 {[%clk 0:01:16]}  fxe5 {[%clk 0:00:36]} 36. Kc4 {[%clk 0:01:14]}  a5 {[%clk 0:00:36]} 37. Kb3 {[%clk 0:01:10]}  Kb5 {[%clk 0:00:36]} 38. a4+ {[%clk 0:01:10]}  bxa3 {[%clk 0:00:28]} 39. Kxa3 {[%clk 0:01:09]}  Rc8 {[%clk 0:00:27]} 40. Rh3 {[%clk 0:01:01]}  Rc4 {[%clk 0:00:24]} 41. Rb3+ {[%clk 0:01:00]}  Rb4 {[%clk 0:00:24]} 42. Rc3 {[%clk 0:00:43]}  Ra4+ {[%clk 0:00:23]} 43. Kb3 {[%clk 0:00:42]}  Rb4+ {[%clk 0:00:22]} 44. Ka3 {[%clk 0:00:42]}  Ra4+ {[%clk 0:00:22]} 45. Kb3 {[%clk 0:00:42]}  Rb4+ {[%clk 0:00:23]} 46. Ka3 {[%clk 0:00:42]} 1/2-1/2

[Event "November 21 Early 2023"]
[Site "https://www.chess.com"]
[Date "2023.11.21"]
[Round "1"]
[White "Semenova, Alina"]
[Black "Gavrilov, Maxim"]
[Result "0-1"]
[Board "228"]
[TimeControl "180+1"]
[WhiteFideId "24113875"]
[BlackFideId "24271454"]
[WhiteElo "1827"]
[BlackElo "2157"]
[WhiteTeam "RUS"]
[BlackTeam "RUS"]
[WhiteClock "0:00:00"]
[BlackClock "0:00:08"]

1. e4 {[%clk 0:02:59]}  c5 {[%clk 0:02:57]} 2. Nf3 {[%clk 0:02:59]}  d6 {[%clk 0:02:52]} 3. d4 {[%clk 0:02:59]}  cxd4 {[%clk 0:02:53]} 4. Nxd4 {[%clk 0:03:00]}  Nf6 {[%clk 0:02:54]} 5. Nc3 {[%clk 0:02:59]}  a6 {[%clk 0:02:54]} 6. f3 {[%clk 0:02:58]}  e5 {[%clk 0:02:54]} 7. Nb3 {[%clk 0:02:58]}  Be6 {[%clk 0:02:55]} 8. Be3 {[%clk 0:02:58]}  Be7 {[%clk 0:02:55]} 9. Qd2 {[%clk 0:02:58]}  O-O {[%clk 0:02:55]} 10. O-O-O {[%clk 0:02:58]}  Nbd7 {[%clk 0:02:56]} 11. g4 {[%clk 0:02:58]}  b5 {[%clk 0:02:56]} 12. g5 {[%clk 0:02:58]}  b4 {[%clk 0:02:56]} 13. Ne2 {[%clk 0:02:53]}  Ne8 {[%clk 0:02:56]} 14. f4 {[%clk 0:02:53]}  a5 {[%clk 0:02:55]} 15. f5 {[%clk 0:02:53]}  a4 {[%clk 0:02:55]} 16. Nbd4 {[%clk 0:02:53]}  exd4 {[%clk 0:02:54]} 17. Nxd4 {[%clk 0:02:54]}  b3 {[%clk 0:02:54]} 18. Kb1 {[%clk 0:02:53]}  bxc2+ {[%clk 0:02:54]} 19. Nxc2 {[%clk 0:02:53]}  Bb3 {[%clk 0:02:54]} 20. axb3 {[%clk 0:02:54]}  axb3 {[%clk 0:02:55]} 21. Na3 {[%clk 0:02:55]}  Ne5 {[%clk 0:02:55]} 22. h4 {[%clk 0:02:53]}  Ra5 {[%clk 0:02:54]} 23. Qg2 {[%clk 0:02:47]}  Qa8 {[%clk 0:02:28]} 24. f6 {[%clk 0:02:46]}  Nxf6 {[%clk 0:02:13]} 25. gxf6 {[%clk 0:02:45]}  Bxf6 {[%clk 0:02:14]} 26. Bg5 {[%clk 0:02:42]}  Bxg5 {[%clk 0:02:03]} 27. hxg5 {[%clk 0:02:42]}  Rc8 {[%clk 0:01:56]} 28. Bd3 {[%clk 0:02:15]}  Nxd3 {[%clk 0:00:48]} 29. Rxd3 {[%clk 0:02:16]}  Rxa3 {[%clk 0:00:48]} 30. bxa3 {[%clk 0:01:39]}  Rc2 {[%clk 0:00:46]} 31. Qxc2 {[%clk 0:00:17]}  bxc2+ {[%clk 0:00:47]} 32. Kxc2 {[%clk 0:00:18]}  Qxe4 {[%clk 0:00:45]} 33. Ra1 {[%clk 0:00:18]}  Qa4+ {[%clk 0:00:39]} 34. Kd2 {[%clk 0:00:18]}  Qf4+ {[%clk 0:00:34]} 35. Kc2 {[%clk 0:00:17]}  Qxg5 {[%clk 0:00:32]} 36. a4 {[%clk 0:00:17]}  Qa5 {[%clk 0:00:28]} 37. Rb3 {[%clk 0:00:13]}  h5 {[%clk 0:00:22]} 38. Rb5 {[%clk 0:00:13]}  Qc7+ {[%clk 0:00:20]} 39. Kd2 {[%clk 0:00:13]}  Qc4 {[%clk 0:00:19]} 40. Rc1 {[%clk 0:00:01]}  Qxa4 {[%clk 0:00:17]} 41. Rc8+ {[%clk 0:00:02]}  Kh7 {[%clk 0:00:17]} 42. Rxh5+ {[%clk 0:00:03]}  Kg6 {[%clk 0:00:17]} 43. Rh3 {[%clk 0:00:01]}  Qa2+ {[%clk 0:00:16]} 44. Rc2 {[%clk 0:00:01]}  Qa5+ {[%clk 0:00:16]} 45. Rhc3 {[%clk 0:00:01]}  d5 {[%clk 0:00:16]} 46. Ke2 {[%clk 0:00:01]}  d4 {[%clk 0:00:15]} 47. Rd3 {[%clk 0:00:01]}  Qh5+ {[%clk 0:00:14]} 48. Kd2 {[%clk 0:00:01]}  Qh2+ {[%clk 0:00:14]} 49. Kc1 {[%clk 0:00:01]}  Qf4+ {[%clk 0:00:14]} 50. Kb2 {[%clk 0:00:01]}  f6 {[%clk 0:00:12]} 51. Rcd2 {[%clk 0:00:01]}  Qb8+ {[%clk 0:00:12]} 52. Kc2 {[%clk 0:00:01]}  Qc7+ {[%clk 0:00:12]} 53. Kd1 {[%clk 0:00:02]}  Kf5 {[%clk 0:00:10]} 54. Rxd4 {[%clk 0:00:03]}  g5 {[%clk 0:00:10]} 55. R4d3 {[%clk 0:00:03]}  g4 {[%clk 0:00:10]} 56. Rf2+ {[%clk 0:00:03]}  Kg5 {[%clk 0:00:10]} 57. Rd5+ {[%clk 0:00:04]}  Kh4 {[%clk 0:00:10]} 58. Rd4 {[%clk 0:00:03]}  Qe5 {[%clk 0:00:08]} 59. Rff4 {[%clk 0:00:02]}  f5 {[%clk 0:00:08]} 60. Kd2 {[%clk 0:00:00]}  Kg3 {[%clk 0:00:08]} 0-1

[Event "November 21 Early 2023"]
[Site "https://www.chess.com"]
[Date "2023.11.21"]
[Round "1"]
[White "Guliev, Logman"]
[Black "Elbebiber"]
[Result "1-0"]
[Board "233"]
[TimeControl "180+1"]
[WhiteFideId "13400061"]
[WhiteElo "2098"]
[BlackElo "2137"]
[WhiteTeam "AZE"]
[WhiteClock "0:01:46"]
[BlackClock "0:00:17"]

1. e4 {[%clk 0:02:59]}  d5 {[%clk 0:02:58]} 2. exd5 {[%clk 0:02:59]}  Nf6 {[%clk 0:02:57]} 3. d4 {[%clk 0:02:57]}  Nxd5 {[%clk 0:02:56]} 4. Nf3 {[%clk 0:02:57]}  Bf5 {[%clk 0:02:53]} 5. a3 {[%clk 0:02:48]}  e6 {[%clk 0:02:35]} 6. c4 {[%clk 0:02:47]}  Nf6 {[%clk 0:02:29]} 7. Nc3 {[%clk 0:02:47]}  Be7 {[%clk 0:02:20]} 8. Bf4 {[%clk 0:02:44]}  c6 {[%clk 0:02:05]} 9. Be2 {[%clk 0:02:44]}  O-O {[%clk 0:02:03]} 10. O-O {[%clk 0:02:44]}  Ne4 {[%clk 0:01:56]} 11. Nxe4 {[%clk 0:02:41]}  Bxe4 {[%clk 0:01:56]} 12. Rc1 {[%clk 0:02:40]}  Nd7 {[%clk 0:01:50]} 13. Qd2 {[%clk 0:02:36]}  Nf6 {[%clk 0:01:44]} 14. Rfd1 {[%clk 0:02:36]}  Qb6 {[%clk 0:01:20]} 15. h3 {[%clk 0:02:28]}  Rad8 {[%clk 0:01:16]} 16. Qc3 {[%clk 0:02:28]}  Bg6 {[%clk 0:01:10]} 17. b4 {[%clk 0:02:20]}  a6 {[%clk 0:01:02]} 18. Be3 {[%clk 0:02:19]}  Qc7 {[%clk 0:01:00]} 19. Ne5 {[%clk 0:02:16]}  Ne4 {[%clk 0:00:58]} 20. Qb3 {[%clk 0:02:16]}  Bd6 {[%clk 0:00:53]} 21. Nf3 {[%clk 0:02:04]}  Bf4 {[%clk 0:00:48]} 22. b5 {[%clk 0:01:57]}  axb5 {[%clk 0:00:43]} 23. cxb5 {[%clk 0:01:57]}  Bxe3 {[%clk 0:00:43]} 24. Qxe3 {[%clk 0:01:55]}  Qd6 {[%clk 0:00:39]} 25. bxc6 {[%clk 0:01:47]}  bxc6 {[%clk 0:00:39]} 26. Ne5 {[%clk 0:01:47]}  c5 {[%clk 0:00:17]} 27. Nxg6 {[%clk 0:01:46]} 1-0

[Event "November 21 Early 2023"]
[Site "https://www.chess.com"]
[Date "2023.11.21"]
[Round "1"]
[White "ChessRespected"]
[Black "DonCiao"]
[Result "1-0"]
[Board "235"]
[TimeControl "180+1"]
[WhiteElo "2536"]
[BlackElo "2128"]
[WhiteClock "0:01:26"]
[BlackClock "0:00:35"]

1. d4 {[%clk 0:02:59]}  Nf6 {[%clk 0:02:59]} 2. Nf3 {[%clk 0:02:59]}  g6 {[%clk 0:03:00]} 3. g3 {[%clk 0:02:58]}  Bg7 {[%clk 0:02:59]} 4. Bg2 {[%clk 0:02:58]}  d5 {[%clk 0:02:59]} 5. c4 {[%clk 0:02:57]}  dxc4 {[%clk 0:02:54]} 6. O-O {[%clk 0:02:56]}  O-O {[%clk 0:02:53]} 7. Na3 {[%clk 0:02:56]}  c3 {[%clk 0:02:52]} 8. bxc3 {[%clk 0:02:55]}  c5 {[%clk 0:02:52]} 9. Bb2 {[%clk 0:02:41]}  Nc6 {[%clk 0:02:48]} 10. Re1 {[%clk 0:02:37]}  Bg4 {[%clk 0:02:14]} 11. h3 {[%clk 0:02:36]}  Bxf3 {[%clk 0:02:10]} 12. Bxf3 {[%clk 0:02:37]}  Qc7 {[%clk 0:02:03]} 13. Rb1 {[%clk 0:02:31]}  Rad8 {[%clk 0:02:01]} 14. Qa4 {[%clk 0:02:29]}  a6 {[%clk 0:01:57]} 15. dxc5 {[%clk 0:02:26]}  Nd5 {[%clk 0:01:52]} 16. Nc4 {[%clk 0:02:24]}  Nxc3 {[%clk 0:01:44]} 17. Bxc3 {[%clk 0:02:19]}  Bxc3 {[%clk 0:01:44]} 18. Rec1 {[%clk 0:02:16]}  Bf6 {[%clk 0:01:41]} 19. Bxc6 {[%clk 0:02:11]}  bxc6 {[%clk 0:01:34]} 20. Qxa6 {[%clk 0:02:10]}  Ra8 {[%clk 0:01:25]} 21. Qb6 {[%clk 0:02:03]}  Qd7 {[%clk 0:01:25]} 22. Qb7 {[%clk 0:01:46]}  Qxh3 {[%clk 0:01:22]} 23. Qxc6 {[%clk 0:01:39]}  Rxa2 {[%clk 0:01:21]} 24. Qf3 {[%clk 0:01:38]}  h5 {[%clk 0:00:52]} 25. c6 {[%clk 0:01:32]}  h4 {[%clk 0:00:49]} 26. c7 {[%clk 0:01:29]}  hxg3 {[%clk 0:00:46]} 27. Qxg3 {[%clk 0:01:28]}  Qxg3+ {[%clk 0:00:42]} 28. fxg3 {[%clk 0:01:29]}  Be5 {[%clk 0:00:42]} 29. Nxe5 {[%clk 0:01:28]}  Rxe2 {[%clk 0:00:35]} 30. c8=Q {[%clk 0:01:26]} 1-0

[Event "November 21 Early 2023"]
[Site "https://www.chess.com"]
[Date "2023.11.21"]
[Round "1"]
[White "GMT4114"]
[Black "Pinheiro, Iung Alicio de O."]
[Result "0-1"]
[Board "244"]
[TimeControl "180+1"]
[BlackFideId "2104350"]
[WhiteElo "1966"]
[BlackElo "2283"]
[BlackTeam "BRA"]
[WhiteClock "0:00:08"]
[BlackClock "0:00:20"]

1. e4 {[%clk 0:03:00]}  c5 {[%clk 0:02:58]} 2. Nc3 {[%clk 0:03:01]}  a6 {[%clk 0:02:57]} 3. Nge2 {[%clk 0:03:00]}  b5 {[%clk 0:02:53]} 4. g3 {[%clk 0:03:00]}  Bb7 {[%clk 0:02:49]} 5. Bg2 {[%clk 0:02:58]}  e6 {[%clk 0:02:48]} 6. d4 {[%clk 0:02:56]}  cxd4 {[%clk 0:02:47]} 7. Nxd4 {[%clk 0:02:57]}  Nf6 {[%clk 0:02:37]} 8. O-O {[%clk 0:02:57]}  b4 {[%clk 0:02:37]} 9. Na4 {[%clk 0:02:52]}  Bxe4 {[%clk 0:02:35]} 10. Bxe4 {[%clk 0:02:50]}  Nxe4 {[%clk 0:02:36]} 11. Re1 {[%clk 0:02:50]}  Nc5 {[%clk 0:02:20]} 12. c3 {[%clk 0:02:40]}  Qa5 {[%clk 0:01:53]} 13. Nxc5 {[%clk 0:02:26]}  Qxc5 {[%clk 0:01:44]} 14. Be3 {[%clk 0:02:17]}  Qd5 {[%clk 0:01:31]} 15. c4 {[%clk 0:02:03]}  Qb7 {[%clk 0:01:14]} 16. Qa4 {[%clk 0:02:02]}  Be7 {[%clk 0:01:11]} 17. Rac1 {[%clk 0:01:19]}  O-O {[%clk 0:01:07]} 18. Nb3 {[%clk 0:01:19]}  Nc6 {[%clk 0:00:59]} 19. Nc5 {[%clk 0:01:16]}  Qc7 {[%clk 0:00:49]} 20. Red1 {[%clk 0:01:16]}  d6 {[%clk 0:00:49]} 21. Ne4 {[%clk 0:01:10]}  Rfd8 {[%clk 0:00:48]} 22. Qc2 {[%clk 0:01:09]}  Rac8 {[%clk 0:00:46]} 23. b3 {[%clk 0:01:08]}  a5 {[%clk 0:00:46]} 24. Bf4 {[%clk 0:01:07]}  h6 {[%clk 0:00:44]} 25. Qe2 {[%clk 0:01:06]}  e5 {[%clk 0:00:31]} 26. Be3 {[%clk 0:01:04]}  Qb7 {[%clk 0:00:30]} 27. Qg4 {[%clk 0:01:04]}  Kh8 {[%clk 0:00:26]} 28. Qf5 {[%clk 0:01:03]}  Bf8 {[%clk 0:00:25]} 29. Rc2 {[%clk 0:00:54]}  Ne7 {[%clk 0:00:25]} 30. Qf3 {[%clk 0:00:44]}  f5 {[%clk 0:00:25]} 31. Nd2 {[%clk 0:00:44]}  e4 {[%clk 0:00:18]} 32. Qe2 {[%clk 0:00:40]}  d5 {[%clk 0:00:18]} 33. Bd4 {[%clk 0:00:32]}  Nc6 {[%clk 0:00:16]} 34. Bb2 {[%clk 0:00:30]}  d4 {[%clk 0:00:17]} 35. Rcc1 {[%clk 0:00:25]}  Bc5 {[%clk 0:00:15]} 36. Qh5 {[%clk 0:00:23]}  Qd7 {[%clk 0:00:15]} 37. h4 {[%clk 0:00:21]}  Qe6 {[%clk 0:00:15]} 38. Nf1 {[%clk 0:00:20]}  Rd7 {[%clk 0:00:13]} 39. Re1 {[%clk 0:00:20]}  Rcd8 {[%clk 0:00:14]} 40. Rcd1 {[%clk 0:00:21]}  Qf6 {[%clk 0:00:14]} 41. Nh2 {[%clk 0:00:20]}  Kh7 {[%clk 0:00:14]} 42. g4 {[%clk 0:00:21]}  Qg6 {[%clk 0:00:14]} 43. Qxg6+ {[%clk 0:00:20]}  Kxg6 {[%clk 0:00:15]} 44. gxf5+ {[%clk 0:00:21]}  Kxf5 {[%clk 0:00:15]} 45. Kh1 {[%clk 0:00:21]}  g5 {[%clk 0:00:14]} 46. Rg1 {[%clk 0:00:21]}  d3 {[%clk 0:00:14]} 47. hxg5 {[%clk 0:00:21]}  hxg5 {[%clk 0:00:15]} 48. f3 {[%clk 0:00:20]}  Bxg1 {[%clk 0:00:14]} 49. Kxg1 {[%clk 0:00:20]}  e3 {[%clk 0:00:14]} 50. Ng4 {[%clk 0:00:16]}  e2 {[%clk 0:00:14]} 51. Re1 {[%clk 0:00:14]}  d2 {[%clk 0:00:15]} 52. Ne3+ {[%clk 0:00:14]}  Kg6 {[%clk 0:00:15]} 53. Rxe2 {[%clk 0:00:12]}  d1=Q+ {[%clk 0:00:16]} 54. Nxd1 {[%clk 0:00:12]}  Rxd1+ {[%clk 0:00:17]} 55. Kf2 {[%clk 0:00:13]}  R1d2 {[%clk 0:00:17]} 56. Ke3 {[%clk 0:00:10]}  Rxe2+ {[%clk 0:00:17]} 57. Kxe2 {[%clk 0:00:10]}  Re8+ {[%clk 0:00:17]} 58. Kf2 {[%clk 0:00:11]}  Kf5 {[%clk 0:00:18]} 59. Kg2 {[%clk 0:00:10]}  Ne5 {[%clk 0:00:18]} 60. Kf2 {[%clk 0:00:10]}  Nd3+ {[%clk 0:00:19]} 61. Kg2 {[%clk 0:00:08]}  Nxb2 {[%clk 0:00:20]} 0-1

[Event "November 21 Early 2023"]
[Site "https://www.chess.com"]
[Date "2023.11.21"]
[Round "1"]
[White "IsaqueGoncalvesSanto"]
[Black "Jimenez Almeida, Luis David"]
[Result "0-1"]
[Board "246"]
[TimeControl "180+1"]
[BlackFideId "22242244"]
[WhiteElo "1910"]
[BlackElo "2216"]
[BlackTeam "ESP"]
[WhiteClock "0:01:47"]
[BlackClock "0:02:07"]

1. d4 {[%clk 0:02:52]}  g6 {[%clk 0:02:58]} 2. c4 {[%clk 0:02:47]}  Bg7 {[%clk 0:02:58]} 3. Nc3 {[%clk 0:02:46]}  c5 {[%clk 0:02:58]} 4. d5 {[%clk 0:02:46]}  Bxc3+ {[%clk 0:02:57]} 5. bxc3 {[%clk 0:02:46]}  Qa5 {[%clk 0:02:58]} 6. Bd2 {[%clk 0:02:45]}  f5 {[%clk 0:02:57]} 7. Nf3 {[%clk 0:02:39]}  Nf6 {[%clk 0:02:57]} 8. Ng5 {[%clk 0:02:34]}  h6 {[%clk 0:02:54]} 9. Nh3 {[%clk 0:02:30]}  d6 {[%clk 0:02:40]} 10. f3 {[%clk 0:02:29]}  Nbd7 {[%clk 0:02:39]} 11. Nf4 {[%clk 0:02:29]}  Ne5 {[%clk 0:02:38]} 12. e3 {[%clk 0:02:26]}  Bd7 {[%clk 0:02:35]} 13. h4 {[%clk 0:02:24]}  O-O-O {[%clk 0:02:34]} 14. Qb3 {[%clk 0:02:22]}  g5 {[%clk 0:02:33]} 15. hxg5 {[%clk 0:02:21]}  hxg5 {[%clk 0:02:34]} 16. Rxh8 {[%clk 0:02:20]}  Rxh8 {[%clk 0:02:34]} 17. Rb1 {[%clk 0:02:15]}  b6 {[%clk 0:02:31]} 18. Nh3 {[%clk 0:02:11]}  Rxh3 {[%clk 0:02:07]} 19. gxh3 {[%clk 0:02:07]}  Nxf3+ {[%clk 0:02:07]} 20. Ke2 {[%clk 0:02:08]}  Nxd2 {[%clk 0:02:07]} 21. Kxd2 {[%clk 0:02:07]}  Ne4+ {[%clk 0:02:07]} 22. Kc2 {[%clk 0:02:07]}  Ba4 {[%clk 0:02:07]} 23. Bd3 {[%clk 0:01:47]}  Qxc3+ {[%clk 0:02:07]} 0-1

[Event "November 21 Early 2023"]
[Site "https://www.chess.com"]
[Date "2023.11.21"]
[Round "1"]
[White "Lund, Gunnar"]
[Black "bn1462"]
[Result "1-0"]
[Board "249"]
[TimeControl "180+1"]
[WhiteFideId "1520814"]
[WhiteElo "2233"]
[BlackElo "1858"]
[WhiteTeam "NOR"]
[WhiteClock "0:02:32"]
[BlackClock "0:01:02"]

1. d4 {[%clk 0:03:00]}  Nf6 {[%clk 0:02:59]} 2. Nf3 {[%clk 0:02:59]}  d5 {[%clk 0:02:59]} 3. g3 {[%clk 0:02:55]}  e6 {[%clk 0:02:56]} 4. Bg2 {[%clk 0:02:53]}  Be7 {[%clk 0:02:57]} 5. c4 {[%clk 0:02:53]}  O-O {[%clk 0:02:57]} 6. O-O {[%clk 0:02:53]}  c6 {[%clk 0:02:55]} 7. b3 {[%clk 0:02:53]}  b6 {[%clk 0:02:55]} 8. Bb2 {[%clk 0:02:51]}  Bb7 {[%clk 0:02:55]} 9. Nc3 {[%clk 0:02:51]}  Na6 {[%clk 0:02:51]} 10. Rc1 {[%clk 0:02:49]}  Rc8 {[%clk 0:02:44]} 11. Re1 {[%clk 0:02:43]}  Bb4 {[%clk 0:02:24]} 12. a3 {[%clk 0:02:40]}  Bxc3 {[%clk 0:02:23]} 13. Bxc3 {[%clk 0:02:41]}  Ne4 {[%clk 0:02:23]} 14. Bb2 {[%clk 0:02:41]}  c5 {[%clk 0:02:24]} 15. Ne5 {[%clk 0:02:38]}  cxd4 {[%clk 0:02:11]} 16. Qxd4 {[%clk 0:02:37]}  dxc4 {[%clk 0:02:04]} 17. Nxc4 {[%clk 0:02:35]}  Qxd4 {[%clk 0:02:03]} 18. Bxd4 {[%clk 0:02:35]}  Rfd8 {[%clk 0:01:58]} 19. Red1 {[%clk 0:02:36]}  Nac5 {[%clk 0:01:54]} 20. Bxc5 {[%clk 0:02:32]}  Nxc5 {[%clk 0:01:51]} 21. Nd6 {[%clk 0:02:32]}  Rb8 {[%clk 0:01:02]} 22. Nxb7 {[%clk 0:02:32]} 1-0

[Event "November 21 Early 2023"]
[Site "https://www.chess.com"]
[Date "2023.11.21"]
[Round "1"]
[White "dumbernugget"]
[Black "vishwa_vijeta"]
[Result "0-1"]
[Board "250"]
[TimeControl "180+1"]
[WhiteElo "1850"]
[BlackElo "2527"]
[WhiteClock "0:00:46"]
[BlackClock "0:01:49"]

1. d4 {[%clk 0:03:00]}  Nf6 {[%clk 0:02:46]} 2. c4 {[%clk 0:03:00]}  g6 {[%clk 0:02:46]} 3. Nc3 {[%clk 0:03:00]}  d5 {[%clk 0:02:44]} 4. cxd5 {[%clk 0:03:01]}  Nxd5 {[%clk 0:02:44]} 5. Bd2 {[%clk 0:03:02]}  Bg7 {[%clk 0:02:42]} 6. e4 {[%clk 0:03:02]}  Nxc3 {[%clk 0:02:39]} 7. Bxc3 {[%clk 0:03:03]}  c5 {[%clk 0:02:30]} 8. d5 {[%clk 0:03:00]}  Bxc3+ {[%clk 0:02:28]} 9. bxc3 {[%clk 0:03:00]}  e6 {[%clk 0:02:25]} 10. Bc4 {[%clk 0:02:56]}  exd5 {[%clk 0:02:24]} 11. Bxd5 {[%clk 0:02:56]}  O-O {[%clk 0:02:23]} 12. Nf3 {[%clk 0:02:56]}  Nd7 {[%clk 0:02:21]} 13. O-O {[%clk 0:02:54]}  Nf6 {[%clk 0:02:21]} 14. c4 {[%clk 0:02:54]}  Nxd5 {[%clk 0:02:21]} 15. Qxd5 {[%clk 0:02:53]}  Qe7 {[%clk 0:02:20]} 16. Rad1 {[%clk 0:02:40]}  Be6 {[%clk 0:02:19]} 17. Qd3 {[%clk 0:02:38]}  Rad8 {[%clk 0:02:18]} 18. Qb3 {[%clk 0:02:38]}  b6 {[%clk 0:02:19]} 19. Nd2 {[%clk 0:02:31]}  Rd4 {[%clk 0:02:11]} 20. f3 {[%clk 0:02:12]}  Rfd8 {[%clk 0:02:11]} 21. Qc2 {[%clk 0:02:10]}  Qd7 {[%clk 0:02:10]} 22. Rf2 {[%clk 0:02:06]}  Bxc4 {[%clk 0:02:06]} 23. a4 {[%clk 0:01:52]}  Bd3 {[%clk 0:02:00]} 24. Qc3 {[%clk 0:01:46]}  Qxa4 {[%clk 0:01:58]} 25. Nb3 {[%clk 0:01:45]}  Bc4 {[%clk 0:01:49]} 26. Rxd4 {[%clk 0:00:57]}  cxd4 {[%clk 0:01:49]} 27. Nxd4 {[%clk 0:00:46]}  Qd1+ {[%clk 0:01:49]} 0-1

[Event "November 21 Early 2023"]
[Site "https://www.chess.com"]
[Date "2023.11.21"]
[Round "2"]
[White "Koellner, Ruben Gideon"]
[Black "Nakamura, Hikaru"]
[Result "0-1"]
[Board "1"]
[TimeControl "180+1"]
[WhiteFideId "12993093"]
[BlackFideId "2016192"]
[WhiteElo "2347"]
[BlackElo "2874"]
[WhiteTeam "GER"]
[BlackTeam "USA"]
[WhiteClock "0:00:00"]
[BlackClock "0:00:19"]

1. d4 {[%clk 0:03:00]}  a5 {[%clk 0:02:47]} 2. e4 {[%clk 0:02:54]}  c6 {[%clk 0:02:47]} 3. Nf3 {[%clk 0:02:52]}  d5 {[%clk 0:02:46]} 4. e5 {[%clk 0:02:51]}  Bf5 {[%clk 0:02:35]} 5. Bd3 {[%clk 0:02:36]}  Bxd3 {[%clk 0:02:34]} 6. Qxd3 {[%clk 0:02:37]}  e6 {[%clk 0:02:35]} 7. O-O {[%clk 0:02:36]}  c5 {[%clk 0:02:34]} 8. dxc5 {[%clk 0:02:28]}  Bxc5 {[%clk 0:02:34]} 9. Nc3 {[%clk 0:02:26]}  Nc6 {[%clk 0:02:32]} 10. Nb5 {[%clk 0:02:24]}  Nh6 {[%clk 0:02:06]} 11. Be3 {[%clk 0:01:59]}  Be7 {[%clk 0:02:06]} 12. Bxh6 {[%clk 0:01:36]}  gxh6 {[%clk 0:02:07]} 13. a3 {[%clk 0:01:36]}  O-O {[%clk 0:02:02]} 14. Rad1 {[%clk 0:01:32]}  Qb6 {[%clk 0:01:57]} 15. c4 {[%clk 0:01:20]}  Rfd8 {[%clk 0:01:48]} 16. a4 {[%clk 0:01:14]}  Bf8 {[%clk 0:01:40]} 17. Qe2 {[%clk 0:01:09]}  dxc4 {[%clk 0:01:38]} 18. Qxc4 {[%clk 0:01:07]}  Bg7 {[%clk 0:01:38]} 19. Rde1 {[%clk 0:00:39]}  Rd7 {[%clk 0:01:26]} 20. Qg4 {[%clk 0:00:31]}  Qc5 {[%clk 0:01:05]} 21. Nd6 {[%clk 0:00:26]}  Nxe5 {[%clk 0:00:49]} 22. Rxe5 {[%clk 0:00:10]}  Qxd6 {[%clk 0:00:49]} 23. Rb5 {[%clk 0:00:11]}  b6 {[%clk 0:00:35]} 24. Ne5 {[%clk 0:00:10]}  Rc7 {[%clk 0:00:32]} 25. Rd1 {[%clk 0:00:10]}  Rd8 {[%clk 0:00:26]} 26. Re1 {[%clk 0:00:05]}  Qd2 {[%clk 0:00:25]} 27. Rf1 {[%clk 0:00:04]}  Rc1 {[%clk 0:00:25]} 28. g3 {[%clk 0:00:04]}  Rd5 {[%clk 0:00:20]} 29. Rxc1 {[%clk 0:00:03]}  Qxc1+ {[%clk 0:00:20]} 30. Kg2 {[%clk 0:00:04]}  Rxb5 {[%clk 0:00:21]} 31. axb5 {[%clk 0:00:04]}  Qc5 {[%clk 0:00:21]} 32. Nd3 {[%clk 0:00:02]}  Qxb5 {[%clk 0:00:21]} 33. Nf4 {[%clk 0:00:03]}  Qxb2 {[%clk 0:00:18]} 34. Nh5 {[%clk 0:00:02]}  Qe5 {[%clk 0:00:18]} 35. Qf3 {[%clk 0:00:02]}  Qd5 {[%clk 0:00:18]} 36. Qxd5 {[%clk 0:00:01]}  exd5 {[%clk 0:00:19]} 37. Nf4 {[%clk 0:00:00]}  a4 {[%clk 0:00:19]} 0-1